bitfinex/quotes_ETHUSD_20251107
["timestamp","ask_amount","ask_price","bid_price","bid_amount"]
[1762492608737,0.182,3361.9,3361.8,0.001]
[1762492608938,0.4637,3362.3,3361.8,0.001]
[1762492609149,0.1997,3363.0,3361.8,2.9755716]
[1762492609375,0.261,3361.9,3361.8,0.001]
[1762492609554,0.4607,3361.9,3361.8,0.001]
[1762492609877,0.4637,3362.3,3361.8,0.001]
[1762492610076,0.4637,3362.7,3361.8,0.001]
[1762492610238,0.4637,3362.2,3361.9,2.97449206]
[1762492610673,0.4637,3362.5,3361.9,2.97449206]
[1762492611090,0.4637,3362.9,3361.8,0.001]
[1762492611293,0.4637,3362.9,3362.1,2.97426645]
[1762492611443,0.6634,3363.0,3362.0,0.405504]
[1762492611646,0.4637,3362.9,3362.4,2.97399398]
[1762492612678,0.148,3362.7,3362.1,0.148]
[1762492612879,0.4637,3362.9,3362.0,2.97441973]
[1762492613083,0.148,3362.5,3361.9,0.148]
[1762492613576,0.148,3362.5,3362.1,2.97432938]
[1762492613880,0.148,3362.5,3362.0,2.97438734]
[1762492614249,0.6117,3362.5,3362.0,2.97438734]
[1762492614583,0.6117,3362.5,3362.1,2.97431772]
[1762492614788,0.6117,3362.5,3362.0,2.97440875]
[1762492615205,0.4637,3362.4,3361.8,0.001]
[1762492615399,0.261,3362.1,3361.8,0.001]
[1762492616397,0.6562,3361.9,3361.8,0.001]
[1762492617166,0.9244,3361.9,3361.8,0.001]
[1762492617465,0.4637,3362.7,3361.9,2.97450846]
[1762492617668,0.148,3362.2,3361.9,2.9744449]
[1762492618092,0.148,3362.2,3361.8,0.001]
[1762492618487,0.148,3362.2,3361.9,2.97450352]
[1762492619360,0.148,3362.2,3361.8,2.97557255]
[1762492619831,0.148,3362.2,3361.9,2.97450846]
[1762492620888,0.148,3362.2,3361.8,3.791]
[1762492621393,0.148,3362.2,3361.9,2.97448805]
[1762492622192,0.261,3362.0,3361.8,0.001]
[1762492622404,0.0046,3361.9,3361.8,0.001]
[1762492622615,0.6457,3361.9,3361.8,0.001]
[1762492623195,0.182,3361.9,3361.8,0.001]
[1762492623603,0.6457,3361.9,3361.8,0.001]
[1762492624476,0.182,3361.9,3361.8,0.001]
[1762492624677,0.002,3362.9,3361.9,0.405504]
[1762492624882,0.002,3362.9,3362.5,2.97397532]
[1762492625233,0.002,3362.9,3362.8,3.42421238]
[1762492625438,0.002,3362.9,3362.8,4.02131638]
[1762492625599,0.002,3362.9,3362.8,4.49481638]
[1762492627583,0.002,3362.9,3362.8,4.02131638]
[1762492628517,0.4585,3362.9,3362.2,0.1916]
[1762492628688,0.002,3362.9,3362.3,0.405504]
[1762492628890,0.002,3362.9,3362.8,0.4505]
[1762492629101,0.002,3362.9,3362.7,2.97379537]
[1762492629305,0.002,3362.9,3362.4,0.405504]
[1762492629494,0.002,3362.9,3362.5,2.97397769]
[1762492629694,0.002,3362.9,3362.8,2.97371238]
[1762492630019,0.4637,3362.8,3362.2,0.1916]
[1762492630323,0.2831,3362.7,3362.4,2.97398802]
[1762492630487,0.2831,3362.7,3362.2,0.1916]
[1762492630683,0.1794,3362.9,3362.2,0.1916]
[1762492630887,0.1794,3362.9,3362.6,2.97388923]
[1762492631384,0.002,3362.9,3362.3,0.405504]
[1762492631581,0.002,3362.9,3362.8,2.97371238]
[1762492631996,0.002,3362.9,3362.7,2.97376832]
[1762492632385,0.002,3362.9,3362.8,2.97371238]
[1762492632586,0.002,3362.9,3362.3,0.405504]
[1762492632787,0.002,3362.9,3362.3,1.02896856]
[1762492632788,0.1868,3362.9,3362.3,1.02896856]
[1762492632993,0.1868,3362.9,3362.6,2.97387732]
[1762492633782,0.002,3362.9,3362.8,2.97371238]
[1762492635123,0.002,3362.9,3362.8,4.5149535]
[1762492635327,0.002,3362.9,3362.8,4.48521638]
[1762492635622,0.002,3363.5,3363.4,3.37868589]
[1762492635811,0.002,3363.5,3363.4,9.64582746]
[1762492635984,0.002,3363.5,3363.4,10.11412746]
[1762492639856,0.002,3363.5,3363.4,11.37383946]
[1762492640645,0.002,3363.5,3363.4,4.86249389]
[1762492640848,0.002,3363.5,3363.4,3.46288189]
[1762492641037,0.002,3363.5,3363.4,4.90880704]
[1762492641237,0.002,3363.5,3363.4,5.31431104]
[1762492641637,0.002,3363.5,3363.4,5.78261104]
[1762492642332,0.002,3363.5,3363.4,5.31431104]
[1762492642754,0.002,3363.5,3363.4,5.78261104]
[1762492644245,0.002,3363.5,3363.4,9.57261104]
[1762492645054,0.002,3363.5,3363.4,9.10431104]
[1762492645253,0.002,3363.5,3363.4,7.16868589]
[1762492645455,0.002,3363.5,3363.4,2.97318189]
[1762492645766,0.4271,3363.5,3363.4,3.12118189]
[1762492646166,0.4271,3363.5,3363.4,3.52668589]
[1762492646473,0.9167,3363.5,3363.1,3.79]
[1762492646650,0.4271,3363.5,3363.2,3.12128561]
[1762492646849,0.002,3363.5,3363.4,3.86838589]
[1762492647047,0.002,3363.5,3363.4,4.01638589]
[1762492648159,0.2639,3363.5,3363.4,0.148]
[1762492648345,0.002,3363.5,3363.1,0.1948]
[1762492648551,0.002,3363.5,3363.4,2.97318189]
[1762492649654,0.2639,3363.5,3363.2,0.405504]
[1762492649840,0.0049,3363.3,3363.2,3.3788044]
[1762492650245,0.4951,3363.3,3363.0,2.97345472]
[1762492650577,0.257,3363.1,3362.9,2.97356778]
[1762492650783,0.4902,3363.3,3362.9,2.97356778]
[1762492651079,0.2619,3363.0,3362.6,0.001]
[1762492651241,0.2619,3362.7,3362.6,0.001]
[1762492651446,0.7498,3362.7,3362.6,0.001]
[1762492653167,0.4902,3363.4,3362.6,0.001]
[1762492653773,0.4902,3363.4,3362.9,0.001]
[1762492654174,0.2619,3363.0,3362.9,0.001]
[1762492654575,0.7498,3363.0,3362.9,0.001]
[1762492656660,0.7498,3363.0,3362.6,0.001]
[1762492656866,0.1897,3362.7,3362.6,0.001]
[1762492657452,0.6799,3362.7,3362.6,0.001]
[1762492660705,0.1897,3362.7,3362.6,0.001]
[1762492660907,0.2586,3362.7,3362.6,0.001]
[1762492661323,0.7427,3362.7,3362.6,0.001]
[1762492662792,0.2586,3362.7,3362.6,0.001]
[1762492663905,0.676,3363.0,3362.6,0.001]
[1762492664109,0.2609,3362.7,3362.6,0.001]
[1762492665510,0.4864,3363.3,3362.6,0.4918]
[1762492665824,0.148,3362.8,3362.7,2.97380081]
[1762492665990,0.148,3362.8,3362.6,0.001]
[1762492666393,0.148,3362.8,3362.6,2.97488109]
[1762492667115,0.148,3362.8,3362.6,0.001]
[1762492667617,0.1919,3362.9,3362.6,0.001]
[1762492667618,0.7427,3362.7,3362.6,0.001]
[1762492667836,0.2586,3362.7,3362.6,0.001]
[1762492668215,0.148,3362.7,3362.6,0.001]
[1762492668387,0.4864,3363.4,3362.6,0.4918]
[1762492668589,0.4505,3362.7,3362.6,0.001]
[1762492668994,0.9346,3362.7,3362.6,0.001]
[1762492669332,0.4505,3362.7,3362.6,0.001]
[1762492669532,0.2586,3362.7,3362.6,0.001]
[1762492670419,0.7427,3362.7,3362.6,0.001]
[1762492674035,0.1939,3362.9,3361.9,0.001]
[1762492674036,0.4863,3362.3,3361.9,0.001]
[1762492674351,0.0073,3362.0,3361.9,0.001]
[1762492674815,0.4937,3362.0,3361.9,0.001]
[1762492680658,0.4864,3362.3,3361.9,0.001]
[1762492681049,0.2586,3362.0,3361.9,0.001]
[1762492681637,0.7427,3362.0,3361.9,0.001]
[1762492682265,0.2609,3362.0,3361.9,0.001]
[1762492682457,0.7428,3362.0,3361.9,0.001]
[1762492683266,0.9430512,3362.0,3361.9,0.001]
[1762492683638,0.9430512,3362.0,3361.8,0.001]
[1762492683840,0.6831,3361.9,3361.8,0.001]
[1762492685781,0.1967,3361.9,3361.8,0.001]
[1762492686167,0.6831,3361.9,3361.8,0.001]
[1762492689265,0.6851,3361.9,3361.8,0.001]
[1762492689889,0.6851,3361.9,3361.5,0.001]
[1762492689890,7.58235357,3361.9,3361.5,0.001]
[1762492690100,0.2617,3361.6,3361.5,0.001]
[1762492690406,0.148,3361.5,3361.4,0.001]
[1762492690695,0.148,3361.5,3361.1,0.001]
[1762492690696,1.306304,3361.5,3361.1,0.001]
[1762492690904,0.148,3361.1,3360.8,0.001]
[1762492691116,0.1992,3360.9,3360.8,0.001]
[1762492691272,0.4486,3360.9,3360.8,0.001]
[1762492691471,0.9354,3360.9,3360.8,0.001]
[1762492693114,0.4486,3360.9,3360.8,0.001]
[1762492693267,0.2494,3360.9,3360.8,0.001]
[1762492693468,0.7362,3360.9,3360.8,0.001]
[1762492696214,5.37680949,3360.9,3360.8,0.001]
[1762492696566,5.61775434,3360.8,3360.1,0.001]
[1762492696790,0.2494,3360.2,3360.1,0.001]
[1762492697197,0.7362,3360.2,3360.1,0.001]
[1762492698016,1.48150233,3360.2,3360.1,0.001]
[1762492698167,0.554304,3360.1,3358.1,0.1488]
[1762492698372,0.2432,3359.6,3358.3,0.6772]
[1762492698574,0.62508167,3359.6,3358.3,0.4916]
[1762492698803,0.2432,3359.6,3358.8,0.4926]
[1762492699181,0.7299,3359.6,3358.8,0.001]
[1762492699514,0.20358063,3360.0,3359.5,0.4758]
[1762492699685,1.259712,3360.5,3359.5,0.4758]
[1762492699686,0.1992,3360.2,3359.5,0.4758]
[1762492699884,0.4892,3361.1,3359.6,3.46808546]
[1762492700114,0.1767,3360.8,3360.1,0.4748]
[1762492700502,0.6659,3360.8,3360.1,0.4748]
[1762492700679,0.6659,3360.8,3359.7,0.4916]
[1762492701984,0.6659,3360.8,3359.8,2.97631027]
[1762492702485,0.1767,3360.8,3359.9,3.4678635]
[1762492702687,0.1767,3360.8,3359.9,0.4916]
[1762492703102,0.4892,3360.7,3359.5,0.001]
[1762492703305,0.4892,3360.7,3359.6,0.4916]
[1762492703504,0.4892,3360.7,3359.5,0.001]
[1762492703715,0.405504,3360.6,3359.5,0.001]
[1762492704221,0.4892,3360.5,3359.5,0.4926]
[1762492704789,0.1767,3360.8,3359.6,2.97649126]
[1762492705021,0.6659,3360.8,3359.5,3.46920704]
[1762492705222,0.6659,3360.8,3359.6,2.97654328]
[1762492705404,0.4892,3360.7,3359.6,0.4916]
[1762492705824,0.1767,3360.8,3359.6,1.13630234]
[1762492705999,0.1767,3360.8,3359.7,2.97641739]
[1762492706199,0.1767,3360.8,3359.7,3.46801739]
[1762492706404,0.1767,3360.8,3359.8,0.4916]
[1762492706603,0.1767,3360.8,3359.8,0.4926]
[1762492706801,0.1787,3360.8,3359.8,0.4926]
[1762492706990,0.002,3360.8,3359.8,0.4926]
[1762492707196,0.002,3360.8,3359.8,0.001]
[1762492708323,0.1488,3360.0,3359.8,0.001]
[1762492708725,0.1488,3360.0,3359.9,0.4748]
[1762492709128,0.1488,3360.0,3359.9,0.9664]
[1762492709325,0.1488,3360.0,3359.8,0.001]
[1762492709713,0.1488,3360.0,3359.9,0.9664]
[1762492709926,0.1488,3360.0,3359.9,4.36681539]
[1762492710630,0.1488,3360.0,3359.9,4.3370526]
[1762492711317,0.002,3360.8,3359.9,4.3370526]
[1762492711517,0.002,3360.8,3360.7,0.6604]
[1762492711708,0.002,3360.8,3360.7,4.12757056]
[1762492712325,0.002,3361.2,3361.1,2.97521644]
[1762492712534,0.002,3361.5,3361.4,2.97495091]
[1762492712695,0.002,3361.5,3361.4,3.47950041]
[1762492712901,0.002,3361.5,3361.4,3.94135091]
[1762492714464,0.002,3361.5,3361.4,0.9664]
[1762492714767,0.002,3361.5,3361.4,3.94135091]
[1762492714988,0.002,3361.5,3361.4,0.9664]
[1762492715134,0.002,3361.5,3361.1,0.1856]
[1762492715463,0.002,3361.5,3360.7,0.1856]
[1762492715770,0.002,3361.5,3360.7,0.6772]
[1762492716273,0.002,3361.5,3360.7,0.1856]
[1762492716738,0.002,3361.5,3361.4,0.4748]
[1762492717136,0.002,3361.5,3361.1,0.1856]
[1762492717936,0.002,3361.5,3361.1,0.6772]
[1762492719268,0.002,3361.5,3361.1,0.1856]
[1762492719439,0.002,3361.5,3361.1,0.6598]
[1762492720283,0.002,3361.5,3361.4,0.4943]
[1762492721345,0.002,3361.5,3361.4,0.9935]
[1762492722992,0.148,3361.4,3361.1,0.1856]
[1762492723152,0.148,3361.2,3360.8,3.79]
[1762492723691,0.148,3361.2,3360.8,7.26467916]
[1762492724033,0.148,3361.2,3361.1,0.001]
[1762492724233,0.148,3361.2,3361.1,3.64221644]
[1762492724451,0.148,3361.2,3361.1,0.4869]
[1762492724668,0.148,3361.2,3361.1,0.001]
[1762492725271,0.4219,3361.2,3361.1,0.001]
[1762492725448,0.878,3361.2,3361.1,0.001]
[1762492726172,0.4219,3361.2,3361.1,0.001]
[1762492726396,0.148,3361.2,3361.1,0.4869]
[1762492726687,0.002,3361.5,3361.1,4.1413669]
[1762492726985,0.002,3361.5,3361.4,0.4859]
[1762492727385,0.002,3361.5,3361.4,0.9851]
[1762492728171,0.002,3361.5,3361.4,0.4859]
[1762492729669,0.002,3361.5,3361.4,0.9851]
[1762492729875,0.002,3361.5,3361.4,3.96005091]
[1762492730242,0.002,3361.5,3361.4,0.9851]
[1762492730436,0.002,3361.5,3361.4,3.96005091]
[1762492730643,0.002,3361.5,3361.4,0.9851]
[1762492731674,0.002,3361.5,3361.4,0.4859]
[1762492733957,0.002,3361.5,3361.4,3.46085091]
[1762492734154,0.002,3361.5,3361.4,3.96005091]
[1762492734360,0.002,3361.5,3361.4,4.67168538]
[1762492735297,0.002,3361.5,3361.4,3.96005091]
[1762492741472,0.002,3361.9,3361.8,2.97459694]
[1762492741671,0.002,3361.9,3361.8,3.8957469]
[1762492741851,0.002,3361.9,3361.8,4.36520094]
[1762492742057,0.002,3362.2,3362.1,2.97433151]
[1762492742287,0.002,3362.2,3362.1,3.89547882]
[1762492742604,0.002,3362.6,3362.5,3.37948169]
[1762492742752,0.002,3362.6,3362.5,4.39432146]
[1762492743558,0.002,3362.9,3362.8,3.37921638]
[1762492743780,0.002,3362.9,3362.8,4.96661436]
[1762492743964,0.002,3362.9,3362.8,5.25681436]
[1762492744290,0.1847,3364.4,3363.2,3.3788627]
[1762492744592,0.1847,3364.4,3363.2,4.3639627]
[1762492744789,0.1847,3364.8,3363.2,4.39369628]
[1762492744958,0.458,3365.1,3363.5,2.9730935]
[1762492745159,0.458,3365.1,3364.0,2.9726516]
[1762492745358,0.458,3365.1,3364.0,3.9577516]
[1762492745758,0.1847,3365.3,3364.0,3.9577516]
[1762492746088,0.1847,3365.3,3364.0,4.3632556]
[1762492746296,0.005,3365.9,3364.0,4.3632556]
[1762492746480,0.005,3365.9,3365.2,0.4859]
[1762492748081,0.309,3365.3,3364.3,0.1801]
[1762492748274,0.458,3365.8,3364.3,0.1801]
[1762492748275,0.0031,3365.2,3364.3,0.1801]
[1762492748604,0.0031,3365.2,3364.4,0.4992]
[1762492748805,0.458,3365.1,3364.1,0.1801]
[1762492748978,0.3059,3364.4,3363.7,0.1801]
[1762492749177,0.458,3365.1,3363.7,0.1801]
[1762492749383,0.458,3365.1,3364.0,2.97259442]
[1762492749384,0.1101,3364.9,3364.0,2.97259442]
[1762492749777,0.5681,3364.9,3363.8,0.4992]
[1762492750276,0.5681,3364.9,3363.3,0.1801]
[1762492750477,0.4568,3363.9,3363.1,0.1718]
[1762492750805,0.1795,3363.8,3363.1,0.1718]
[1762492751103,0.1795,3363.8,3362.9,3.16681052]
[1762492751302,0.466,3363.7,3362.8,0.4992]
[1762492751602,0.148,3363.2,3362.8,3.47288824]
[1762492751806,0.466,3363.7,3362.6,0.1932]
[1762492752005,0.148,3362.9,3362.3,0.3412]
[1762492752502,0.148,3362.9,3362.4,0.4607]
[1762492752803,0.148,3362.7,3362.3,3.16734563]
[1762492753004,0.148,3362.7,3362.1,0.6087]
[1762492753177,0.148,3362.7,3362.1,0.148]
[1762492753378,0.466,3362.6,3361.6,0.1932]
[1762492753580,0.6533,3363.0,3362.2,2.97419533]
[1762492753897,0.1873,3363.0,3362.2,2.97419533]
[1762492754094,0.1795,3363.8,3362.3,0.49044154]
[1762492754292,0.466,3363.7,3362.3,0.49044154]
[1762492754492,0.466,3363.7,3362.4,0.405504]
[1762492754692,0.1795,3363.8,3362.6,0.405504]
[1762492754893,0.1795,3363.8,3363.2,2.97334309]
[1762492755092,0.1795,3363.8,3363.3,0.0297327]
[1762492755299,0.6657,3364.1,3363.4,2.97318083]
[1762492755505,0.6657,3364.1,3363.3,2.97325273]
[1762492755706,0.1997,3364.1,3363.1,0.6539]
[1762492755875,0.3305,3363.2,3362.3,0.405504]
[1762492756080,0.5302,3363.2,3362.7,2.97372877]
[1762492756582,0.1997,3363.8,3363.1,0.6846]
[1762492757292,0.6657,3363.8,3363.1,0.4914]
[1762492757619,0.4882,3363.2,3362.3,0.80888093]
[1762492757802,0.3085,3363.7,3362.2,0.4607]
[1762492758112,0.466,3363.6,3363.3,0.001]
[1762492758479,0.3305,3363.4,3363.3,0.001]
[1762492758962,0.7951,3363.4,3363.3,0.001]
[1762492759215,0.3318,3363.4,3363.3,0.001]
[1762492759580,0.1997,3363.8,3363.3,0.001]
[1762492760015,0.6657,3363.8,3363.3,0.001]
[1762492760383,0.466,3363.7,3363.3,0.001]
[1762492760917,0.3305,3363.4,3363.3,0.001]
[1762492761418,0.7951,3363.4,3363.3,0.001]
[1762492763716,0.3305,3363.4,3363.3,0.001]
[1762492764830,0.6657,3364.1,3363.3,0.001]
[1762492764985,0.466,3364.0,3363.3,0.001]
[1762492772046,0.466,3364.5,3363.4,0.4607]
[1762492772201,0.148,3363.6,3363.5,0.34647901]
[1762492772526,0.1101,3364.9,3363.4,0.49043181]
[1762492772697,0.466,3364.8,3363.9,2.97268274]
[1762492773023,0.466,3364.8,3363.8,0.4607]
[1762492773224,0.466,3364.8,3363.9,3.00246171]
[1762492773701,0.466,3364.8,3363.9,0.02972739]
[1762492773884,0.466,3364.8,3363.8,0.4607]
[1762492774105,0.466,3364.8,3363.9,0.4607]
[1762492774335,0.466,3364.8,3363.8,0.3433704]
[1762492774536,0.466,3364.8,3363.6,0.4607]
[1762492774717,0.466,3364.8,3363.7,2.97289657]
[1762492775108,0.1101,3364.9,3364.0,2.97262862]
[1762492775519,0.1101,3364.9,3364.1,0.1932]
[1762492776913,0.466,3365.1,3364.2,3.46289527]
[1762492777122,0.6585412,3365.1,3364.2,0.49042474]
[1762492777344,0.6585412,3365.1,3364.2,3.43316954]
[1762492777643,0.6585412,3365.1,3364.2,0.4607]
[1762492777847,0.6585412,3365.1,3364.2,3.43317018]
[1762492778046,0.6585412,3365.1,3364.2,0.4607]
[1762492778622,0.67096747,3365.1,3364.2,0.4607]
[1762492779043,0.18866747,3365.1,3364.1,0.1932]
[1762492779246,0.1625,3364.2,3363.3,2.97426041]
[1762492779444,0.1625,3364.2,3363.4,3.71866436]
[1762492780125,0.1625,3364.2,3363.4,0.74553604]
[1762492780330,0.1625,3364.2,3363.4,1.24343604]
[1762492780515,0.1977,3364.6,3364.1,0.4839]
[1762492780716,0.4503,3364.9,3364.1,0.4839]
[1762492780920,0.6124,3364.9,3364.1,0.664]
[1762492782251,0.1621,3364.9,3364.1,0.664]
[1762492782443,0.4503,3364.8,3364.1,0.664]
[1762492782780,0.148,3364.3,3364.1,0.664]
[1762492782919,0.148,3364.3,3364.1,4.11696312]
[1762492783254,0.148,3364.3,3364.2,0.9424]
[1762492783454,0.148,3364.3,3364.2,0.95325]
[1762492783656,0.4425,3364.3,3364.0,2.9725949]
[1762492783834,0.148,3364.3,3364.2,0.462]
[1762492784976,0.148,3364.3,3364.2,0.9424]
[1762492785661,0.148,3364.3,3364.2,3.91487488]
[1762492785877,0.148,3364.3,3364.2,0.9424]
[1762492786227,0.148,3364.3,3364.2,0.462]
[1762492787525,0.148,3364.3,3364.2,3.91487488]
[1762492787722,0.148,3364.3,3364.2,4.60361927]
[1762492787969,0.148,3364.3,3364.2,4.63334401]
[1762492788661,0.148,3364.3,3364.2,1.63114439]
[1762492788961,0.148,3364.3,3364.2,0.9424]
[1762492790388,0.148,3364.3,3364.2,0.462]
[1762492790595,0.148,3364.3,3364.2,0.9424]
[1762492791560,0.148,3364.3,3364.2,3.91487488]
[1762492792456,0.148,3364.3,3364.2,0.9424]
[1762492793293,0.148,3364.3,3364.2,0.462]
[1762492793593,0.4425,3364.3,3363.2,0.4804]
[1762492793891,0.148,3363.9,3362.9,0.149]
[1762492794185,0.2916,3363.4,3362.9,2.97460913]
[1762492794413,0.2916,3363.4,3362.9,0.001]
[1762492794610,0.7419,3363.4,3362.9,0.001]
[1762492794753,0.2916,3363.4,3362.9,0.001]
[1762492794955,0.4503,3363.7,3362.9,0.001]
[1762492795176,0.6481,3363.7,3362.9,0.001]
[1762492795388,0.6481,3363.7,3362.9,0.03073623]
[1762492795588,0.1978,3363.9,3363.4,0.001]
[1762492795892,0.4503,3364.1,3363.4,0.001]
[1762492796269,0.148,3363.6,3363.4,0.001]
[1762492796671,0.148,3363.6,3363.5,0.9424]
[1762492796869,0.2963,3363.5,3363.4,0.001]
[1762492797063,0.148,3363.6,3363.4,0.001]
[1762492797994,0.148,3363.6,3363.5,0.462]
[1762492799801,0.148,3363.6,3363.4,0.001]
[1762492801394,0.148,3363.6,3363.5,0.462]
[1762492801576,0.148,3363.6,3363.5,0.9424]
[1762492801778,0.148,3363.6,3363.5,0.85376645]
[1762492801979,0.4443,3363.6,3363.4,0.001]
[1762492802168,0.0045,3363.5,3363.4,0.001]
[1762492802568,0.4548,3363.5,3363.4,0.001]
[1762492803511,1.551612,3363.4,3362.9,0.001]
[1762492803722,0.0074,3363.0,3362.9,0.001]
[1762492804132,0.4577,3363.0,3362.9,0.001]
[1762492805001,0.0074,3363.0,3362.9,0.001]
[1762492805722,0.4577,3363.0,3362.9,0.001]
[1762492806438,0.0074,3363.0,3362.9,0.001]
[1762492807505,0.4503,3363.2,3362.9,0.001]
[1762492807804,0.2963,3363.0,3362.9,0.001]
[1762492808287,0.7451,3363.0,3362.9,0.001]
[1762492810228,0.2963,3363.0,3362.9,0.001]
[1762492810438,1.72612138,3363.7,3362.9,0.001]
[1762492810638,0.4503,3363.5,3362.9,0.001]
[1762492811409,0.2963,3363.0,3362.9,0.001]
[1762492811797,0.7451,3363.0,3362.9,0.001]
[1762492813734,5.38385153,3363.0,3362.9,0.001]
[1762492814121,0.405504,3362.4,3362.2,0.001]
[1762492814331,1.393976,3362.3,3362.2,0.001]
[1762492815433,6.09436793,3362.3,3362.2,0.001]
[1762492815633,3.12021334,3362.3,3362.2,0.001]
[1762492815834,2.40600934,3362.3,3362.2,0.001]
[1762492816131,2.248184,3362.3,3362.2,0.001]
[1762492820240,5.62784259,3362.3,3362.2,0.001]
[1762492820532,2.653688,3362.3,3362.2,0.001]
[1762492821033,2.248184,3362.3,3362.2,0.001]
[1762492822406,1.939484,3362.3,3362.2,0.001]
[1762492822605,1.466784,3362.3,3362.2,0.4853]
[1762492822902,1.554712,3362.3,3362.2,0.001]
[1762492823061,2.039312,3362.3,3362.2,0.001]
[1762492823410,1.554712,3362.3,3362.2,0.001]
[1762492823613,2.039312,3362.3,3362.2,0.001]
[1762492823853,5.01346659,3362.3,3362.2,0.001]
[1762492824163,2.039312,3362.3,3362.2,0.001]
[1762492824663,5.41897059,3362.3,3362.2,0.001]
[1762492825659,2.444816,3362.3,3362.2,0.001]
[1762492827358,5.41897059,3362.3,3362.2,0.001]
[1762492829145,5.75693528,3362.3,3362.2,0.001]
[1762492829930,5.41897059,3362.3,3362.2,0.001]
[1762492830135,2.444816,3362.3,3362.2,0.001]
[1762492830318,2.039312,3362.3,3362.2,0.001]
[1762492830545,5.01346659,3362.3,3362.2,0.001]
[1762492830744,5.41897059,3362.3,3362.2,0.001]
[1762492833374,0.0048,3362.2,3360.0,0.1801]
[1762492833679,0.0048,3362.2,3359.3,0.6565]
[1762492833680,0.15350582,3359.8,3359.3,0.6565]
[1762492834045,0.4529,3359.6,3359.1,0.001]
[1762492834356,8.20174239,3359.6,3359.1,0.001]
[1762492834566,9.09344639,3359.6,3359.1,0.001]
[1762492834879,12.06999121,3359.6,3359.1,0.001]
[1762492835282,5.10369757,3359.5,3359.1,0.001]
[1762492835482,4.10414202,3359.5,3359.1,0.001]
[1762492835649,3.49078081,3359.5,3359.1,0.001]
[1762492835978,6.46741423,3359.5,3359.1,0.001]
[1762492836993,4.64211526,3359.2,3359.1,0.001]
[1762492837145,5.54693527,3359.2,3359.1,0.001]
[1762492837343,6.3835153,3359.2,3359.1,0.001]
[1762492837669,3.40661604,3359.2,3359.1,0.001]
[1762492839291,3.05653601,3359.2,3359.1,0.001]
[1762492839664,2.65103201,3359.2,3359.1,0.001]
[1762492839863,0.9340497,3359.4,3359.1,0.001]
[1762492840062,0.3659232,3359.2,3359.1,0.001]
[1762492840468,0.3659232,3359.2,3359.1,0.5984]
[1762492840766,0.46703375,3359.4,3359.1,1.0911]
[1762492840965,5.45554244,3359.6,3359.1,0.001]
[1762492841153,0.41460542,3359.3,3359.1,0.001]
[1762492841354,0.40500654,3359.2,3359.1,0.001]
[1762492841559,0.86090654,3359.2,3359.1,0.001]
[1762492841789,3.40442796,3359.2,3359.1,0.001]
[1762492841957,10.09792358,3358.9,3358.8,0.001]
[1762492842287,8.52780043,3358.9,3358.8,0.001]
[1762492842467,8.99150043,3358.9,3358.8,0.001]
[1762492842654,8.6166704,3358.9,3358.8,0.001]
[1762492843890,8.61998864,3358.9,3358.8,0.001]
[1762492844059,8.43778864,3358.9,3358.8,0.001]
[1762492844656,7.58727922,3358.9,3358.8,0.001]
[1762492844883,2.13173678,3358.9,3358.8,0.479]
[1762492845258,1.72673024,3358.9,3358.8,0.479]
[1762492845680,2.06157137,3358.9,3358.8,0.479]
[1762492845882,1.59455313,3358.9,3358.8,0.9375]
[1762492846084,1.259712,3358.9,3358.8,0.9375]
[1762492847385,1.758512,3358.9,3358.8,0.001]
[1762492847578,2.85969178,3358.9,3358.8,0.001]
[1762492848204,3.64187227,3358.9,3358.8,0.001]
[1762492849528,0.405504,3358.7,3358.4,0.001]
[1762492849688,7.30155844,3358.5,3358.4,0.001]
[1762492849888,8.02163895,3358.5,3358.4,0.001]
[1762492850118,8.48533895,3358.5,3358.4,0.001]
[1762492850319,7.67829878,3358.5,3358.4,0.001]
[1762492850518,7.12075844,3358.5,3358.4,0.001]
[1762492850824,7.12075844,3358.5,3358.4,0.9375]
[1762492850825,1.259712,3358.5,3358.4,0.9375]
[1762492852219,1.259712,3358.5,3358.4,0.479]
[1762492852409,1.259712,3358.5,3358.4,0.9375]
[1762492852792,0.46702617,3358.9,3358.4,0.9375]
[1762492852991,5.45554244,3359.1,3358.8,0.478]
[1762492853327,1.259712,3359.0,3358.8,0.478]
[1762492853547,1.259712,3359.0,3358.9,0.4585]
[1762492853694,1.259712,3359.0,3358.6,0.4585]
[1762492854023,1.259712,3359.0,3358.9,0.478]
[1762492854395,1.259712,3359.0,3358.4,0.001]
[1762492854396,0.1488,3358.9,3358.4,0.001]
[1762492854591,1.259712,3359.0,3358.4,0.4595]
[1762492854914,1.259712,3359.0,3358.9,0.478]
[1762492855229,1.259712,3359.0,3358.4,0.4595]
[1762492857533,1.259712,3359.0,3358.4,0.001]
[1762492857731,1.259712,3359.0,3358.9,0.478]
[1762492858107,0.002,3359.4,3359.0,2.97707312]
[1762492858311,0.002,3359.4,3359.3,0.581]
[1762492858711,0.002,3359.4,3359.3,1.0395]